Cogmind - Beta 9.1 @@@ ROGUE MODE // 2019.11.01 @ 19:18:50 Player: MrPainting Result: Destroyed by G-47 Trooper with Particle Gun Performance ------------- Evolutions (0) 0 Regions Visited (2) 400 Robots Destroyed (9) 45 Value Destroyed (289) 289 Prototype IDs (0) 0 Alien Tech Used (0) 0 Bonus (0) 0 TOTAL SCORE: 734 Bonus ------- None Cogmind --------- Core Integrity 0/250 Matter 300/300 Energy 250/250 System Corruption 7% Temperature Cool (91) Location -10/Mines Parts ------- Power (1) Ion Engine Propulsion (2) Light Treads Light Treads Utility (2) Heat Sink Light Armor Plating Weapon (2) EM Pulse Gun Light Assault Rifle Inventory (4) Large Storage Unit Large Storage Unit High-capacity Matter Pod (200) Mining Laser Peak State ------------ Power Ion Engine Propulsion Light Treads Light Treads Utility Heat Sink Small Storage Unit Weapon EM Pulse Gun Small Laser Inventory Light Treads Aluminum Leg Medium Matter Pod Light Armor Plating Light Assault Rifle [Rating: 7] Favorites ----------- Power Ion Engine Engine Ion Engine Propulsion Light Treads Treads Light Treads Leg Aluminum Leg Utility Light Armor Plating Device Heat Sink Storage Small Storage Unit Protection Light Armor Plating Weapon EM Pulse Gun Energy Gun EM Pulse Gun Ballistic Gun Light Assault Rifle Launcher Grenade Launcher Build | -11 -10 -10 ------- Run | Scr Mat Min Slots Evolved . | . . . Power . | . . . Propulsion . | . . . Utility . | . . . Weapon . | . . . Parts Attached 19 | 9 10 . Power 1 | 1 . . Engine 1 | 1 . . Core . | . . . Reactor . | . . . Propulsion 6 | 4 2 . Treads 4 | 2 2 . Leg 2 | 2 . . Wheel . | . . . Hover . | . . . Flight . | . . . Utility 4 | 1 3 . Device 1 | . 1 . Storage 1 | 1 . . Processor . | . . . Hackware . | . . . Protection 2 | . 2 . Artifact . | . . . Weapon 8 | 3 5 . Energy Gun 5 | 2 3 . Energy Cannon . | . . . Ballistic Gun 2 | 1 1 . Ballistic Cannon . | . . . Launcher 1 | . 1 . Special Weapon . | . . . Impact Weapon . | . . . Slashing Weapon . | . . . Piercing Weapon . | . . . Special Melee Weapon . | . . . Unidentified Prototypes . | . . . Parts Lost 2 | . 2 . Power . | . . . Propulsion 1 | . 1 . Utility . | . . . Weapon 1 | . 1 . Highest Loss Streak 2 | . 2 . Average Slot Usage (%) 91 | . 83 100 Engine 14 | . 14 14 Treads 16 | . 6 28 Leg 9 | . 17 . Device 9 | . 4 14 Storage 5 | . 10 . Protection 8 | . 3 14 Energy Gun 13 | . 12 14 Ballistic Gun 13 | . 12 14 Naked Turns . | . . . Heaviest Build 16 | 12 16 12 Greatest Support 40 | 40 40 40 Greatest Overweight (x) 1 | . 1 . Average Overweight (x) . | . . . Largest Inventory Capacity 6 | 6 6 4 Average Capacity 4 | 4 5 4 Most Carried 6 | 4 6 4 Average Carried 3 | 2 4 3 Final Capacity 6 | 6 4 4 Final Carried 4 | 3 3 4 Class Distribution -------------------- 100% | Mutant Dominant Class ---------------- Mutant | -10/Materials Mutant | -10/Mines Resources | -11 -10 -10 ----------- Run | Scr Mat Min Matter Collected 642 | 186 113 343 Remotely . | . . . Salvage Created 291 | . 276 15 Parts 26 | . 23 3 Haulers Intercepted . | . . . Recyclers Shooed . | . . . Parts Field Recycled . | . . . Retrieved Matter . | . . . Parts Self-Destructed . | . . . Prevented . | . . . Kills | -11 -10 -10 ------- Run | Scr Mat Min Combat Hostiles Destroyed 7 | . 7 . Guns 2 | . 2 . AOE 5 | . 5 . Classes Destroyed 3 | . 2 1 Worker 1 | . 1 . Tunneler 1 | . . 1 Grunt 7 | . 7 . Best Kill Streak 6 | . 6 1 Combat Bots Only 5 | . 5 . Max Kills in Single Turn 4 | . 4 1 Gunslinging . | . . . Exploded 3 | . 3 . Melee . | . . . Uniques/NPCs Destroyed . | . . . Combat | -11 -10 -10 -------- Run | Scr Mat Min Damage Taken 620 | . 578 42 Core 260 | . 228 32 Absorbed by Shields . | . . . Core Remaining (%) 100 | 100 . . Volleys Fired 19 | . 18 1 Largest 2 | . 2 2 Hottest 80 | . 80 60 Shots Fired 39 | . 37 2 Gun 34 | . 32 2 Cannon . | . . . Launcher 5 | . 5 . Special . | . . . Kinetic 15 | . 14 1 Thermal . | . . . Explosive 5 | . 5 . Electromagnetic 19 | . 18 1 Robot Hit Streak 8 | . 8 2 Robot Miss Streak 3 | . 3 . Penetration Max . | . . . Secondary Targets 1 | . 1 . Max Gunslinging Chain 1 | . 1 . Shots Hit Robots 21 | . 19 2 Core Hits 14 | . 13 1 Critical Hits . | . . . Critical Kills . | . . . Critical Parts Destroyed . | . . . Melee Attacks . | . . . Impact . | . . . Slashing . | . . . Piercing . | . . . Sneak Attacks . | . . . Combat Hostiles . | . . . Follow-up Attacks . | . . . Damage Inflicted 526 | . 505 21 Guns 185 | . 165 20 Cannons . | . . . Explosions 340 | . 340 . Melee . | . . . Ramming 1 | . . 1 Kinetic 45 | . 38 7 Thermal . | . . . Explosive 340 | . 340 . Electromagnetic 140 | . 127 13 Impact . | . . . Slashing . | . . . Piercing . | . . . Highest Corruption 7 | . 7 7 Average Corruption 7 | . 7 7 Corruption Purged . | . . . Effects 9 | . 4 5 Message Errors 2 | . 2 . Matter Fused 2 | . 1 1 Heat Flow Errors 2 | . . 2 Data Loss (minor) 1 | . . 1 Misfires 1 | . 1 . Targeting Errors 1 | . . 1 Overload Shots . | . . . Overflow Damage 18 | . 18 . Projectiles . | . . . Explosions 18 | . 18 . Melee . | . . . Knockbacks . | . . . Impact . | . . . Kinetic . | . . . Secondary . | . . . Self-Inflicted Damage 14 | . 14 . Shots 1 | . 1 . Rammed 1 | . . 1 Targets Rammed 1 | . . 1 Kicked . | . . . Crushed . | . . . Highest Temperature 188 | . 105 188 Average Temperature 43 | . 29 94 Received Heat Transfer 186 | . 162 24 Siege Activations . | . . . Robots Corrupted . | . . . Combat Hostiles . | . . . Parts Fried 1 | . 1 . Impact Corruptions . | . . . Robots Melted . | . . . Combat Hostiles . | . . . Parts Melted . | . . . Heat Transferred . | . . . Parts Sabotaged . | . . . Parts Stolen . | . . . Parts Stripped . | . . . Power Chain Reactions . | . . . Missiles Intercepted . | . . . Alert | -11 -10 -10 ------- Run | Scr Mat Min Peak Influence 230 | . 230 94 Average Influence 90 | . 121 92 Maximum Alert Level 1 | . 1 . Low Security (%) 84 | . . . Level 1 15 | . . . Level 2 . | . . . Level 3 . | . . . Level 4 . | . . . Level 5 . | . . . High Security . | . . . Max Security . | . . . Squads Dispatched 3 | . 3 . Investigation 1 | . 1 . Extermination . | . . . Reinforcement 2 | . 2 . Assault . | . . . Garrison . | . . . Intercept . | . . . Construction Impeded . | . . . Haulers Reinforced . | . . . Stealth | -11 -10 -10 --------- Run | Scr Mat Min Distress Signals 3 | . 3 . Communications Jammed . | . . . Distress Signals . | . . . Times Spotted 17 | . 15 2 Peak Tracking Total 5 | . 5 2 Tactical Retreats 1 | . 1 . Traps | -11 -10 -10 ------- Run | Scr Mat Min Traps Triggered 1 | . 1 . Indirectly . | . . . Trap Hack Attempts . | . . . Triggered . | . . . Disarmed . | . . . Reprogrammed . | . . . Reused . | . . . Traps Extracted . | . . . Installed . | . . . Triggered . | . . . Machines | -11 -10 -10 ---------- Run | Scr Mat Min Machines Disabled 3 | . 3 . Max in Single Turn 2 | . 2 . Machines Sabotaged . | . . . Garrisons Compromised . | . . . Overloaded Fab Kills . | . . . Fab Network Shutdowns . | . . . Hacking | -11 -10 -10 --------- Run | Scr Mat Min Machines Accessed . | . . . Terminals . | . . . Fabricators . | . . . Repair Stations . | . . . Recycling Units . | . . . Scanalyzers . | . . . Garrison Access . | . . . Total Hacks . | . . . Successful . | . . . Failed . | . . . Catastrophic . | . . . Database Lockouts . | . . . Manual . | . . . Terminals . | . . . Fabricators . | . . . Repair Stations . | . . . Recycling Units . | . . . Scanalyzers . | . . . Garrison Access . | . . . Terminal Hacks . | . . . Fabricator Hacks . | . . . Repair Station Hacks . | . . . Recycling Unit Hacks . | . . . Scanalyzer . | . . . Garrison Access Hacks . | . . . Unauthorized Hacks . | . . . Terminals . | . . . Fabricators . | . . . Repair Stations . | . . . Recycling Units . | . . . Scanalyzers . | . . . Garrison Access . | . . . Data Cores Recovered . | . . . Used . | . . . Hacking Detections . | . . . Full Trace Events . | . . . Feedback Events . | . . . Feedback Blocked . | . . . Robot Schematics Acquired . | . . . Robots Built . | . . . Matter . | . . . Time . | . . . Total Robot Build Rating . | . . . Part Schematics Acquired . | . . . Parts Built . | . . . Matter . | . . . Time . | . . . Total Part Build Rating . | . . . Parts Repaired . | . . . Time . | . . . Parts Recycled . | . . . Recycled Matter . | . . . Retrieved Matter . | . . . Retrieved Components . | . . . Parts Scanalyzed . | . . . Part Schematics Acquired . | . . . Parts Damaged . | . . . Bothacking | -11 -10 -10 ------------ Run | Scr Mat Min Used RIF Installer . | . . . Robots Hacked . | . . . Non-combat . | . . . Combat . | . . . Robot Hacks Applied . | . . . Relay Couplers Released . | . . . Robots Rewired . | . . . Allies Hacked . | . . . Hacks Repelled . | . . . Allies | -11 -10 -10 -------- Run | Scr Mat Min Total Allies . | . . . Largest Group . | . . . Highest-Rated Group . | . . . Highest-Rated Ally . | . . . Total Orders . | . . . Ally Attacks . | . . . Total Damage . | . . . Kills . | . . . Allies Corrupted . | . . . Allies Melted . | . . . Intel | -11 -10 -10 ------- Run | Scr Mat Min Robot Analysis Total . | . . . Derelict Logs Recovered . | . . . Drone Launches . | . . . Drone Recoveries . | . . . Exploration | -11 -10 -10 ------------- Run | Scr Mat Min Turns Passed 505 | 80 221 204 Spaces Moved 288 | 49 116 123 Core 15 | 15 . . Treads 179 | 32 24 123 Legs 94 | 2 92 . Wheels . | . . . Hover . | . . . Flight . | . . . Fastest Speed 50 | 50 120 160 Average Speed 141 | 124 129 160 Slowest Speed 160 | 160 160 160 Overloaded Moves . | . . . Propulsion Burnouts . | . . . Robots Hopped . | . . . Cave-ins Triggered 1 | . 1 . Exploration Rate (%) 26 | 4 46 30 Regions Visited 2 Branch Regions 1 Pre-discovered Areas . | . . . Known Exits Taken . | . . . Unknown Exits Taken 2 | 1 1 . Scrap Searched . | . . . Spaces Dug . | . . . Terrain Destroyed 42 | . 42 . Melee . | . . . Projectile . | . . . AOE 42 | . 42 . Actions | -11 -10 -10 --------- Run | Scr Mat Min Total 348 | 66 154 128 Wait . | . . . Move 286 | 48 115 123 Hop . | . . . Pick Up 16 | 9 5 2 Fast Attach 2 | . 2 . Attach 8 | 6 2 . Detach 1 | . 1 . Swap 9 | 3 6 . Drop 6 | . 5 1 Fire 19 | . 18 1 Melee . | . . . Ram . | . . . Kick . | . . . Crush 1 | . . 1 Escape Stasis . | . . . Rewire . | . . . Trap . | . . . Miscellaneous . | . . . Route ------- -11/Scrapyard -10/Materials -10/Mines (discovered 1 exit: [*Mat]) History --------- Turn | Location | Event 3 | -11/Scrapyard | Discovered new exit (range 15) 81 | -11/Scrapyard | Entered Materials 191 | -10/Materials | Crushed by falling debris 191 | -10/Materials | Core integrity fell below 50% 239 | -10/Materials | Core integrity fell below 20% 296 | -10/Materials | Discovered new exit (range 5) 301 | -10/Materials | Build established: Mutant 302 | -10/Materials | Entered Mines 501 | -10/Mines | Discovered new exit (range 8) 506 | -10/Mines | Destroyed by G-47 Trooper with Particle Gun Last Messages --------------- 00319_ System corrupted: Matter fused (-6). 00366_ System corrupted: Lgt. Assault Rifle targeting data glitched. 00366_ T-07 Excavator destroyed. 00369_ Acquired 15 matter. 00372_ T-07 Excavator is excavating. 00379_ Acquired Mining Laser. 00380_ Slammed into U-05 Engineer. 00391_ System corrupted: Heat flow error (+213). 00414_ System corrupted: Component data lost. 00424_ K-01 Serf collects debris. 00461_ Extracted 150 matter. 00463_ Extracted 89 matter. 00465_ Dropped Med. Matter Pod. 00465_ K-01 Serf collects debris. 00465_ Acquired Hcp. Matter Pod. 00468_ K-01 Serf collects debris. 00469_ Extracted 89 matter. 00471_ K-01 Serf collects debris. 00501_ System corrupted: Heat flow error (+196). 00501_ EXIT=FOUND Map ----- +----------------------------------------------------+ | ?????????????????????????????? | | ?????????????????????????????? | | ?????????????????????????????? | | ?????????????????????????????? | | ?????????????????????????????? | | ?????????????????????????????? | | ?????????????????????????????? | | ?????????????????????????????? | | ??????????????????? #????????? | | ?????????????????# ????????? | | ?????????????????? ##??????? | | ?????#????????????# #??????? | | ????? ????????????# #??????? | | ????? ????????????# ##?????? | | ????? ????????????# ##????? | | ????? ?????????????# ##???? | | ????? ?????#??????## ##??? | | ????# #????# ##### #### | | ?#### ##????? # | | ?# < ???????? """ | | ?# ??????????# """ | | ?? gg ??????????# """ | | ??? ??????????# | | ???# #?????????## #### | | ???# #????????## ##??## | | ???# @#???????## ##????### | | ???# #???????# ##???????## | | ???# ###?????# ##?????????# | | ???# #?????# ##??????????# | | ???#### #?????# #???????????? | | ????### #?????# #???????????? | | ???## ####### #???????????? | | ??## #???????????? | | ??# #########??????????## | | ??# ##??????????????????# | | ??# #???????????????????#! | | ??# ##????????????######## | | ??## ##????????????# = | | ?### ####????????????# ##### | | ?# ! ##???????????????????? | | ?# ! #???????????????????? | | ?# ! ! #???????????????????? | | ?# ! ! #???????????????????? | | ?# !!! #???????????????????? | | ?# #???????????????????? | | ?#########???????????????????? | | ?????????????????????????????? | | ?????????????????????????????? | | ?????????????????????????????? | | ?????????????????????????????? | +----------------------------------------------------+ Best States ------------- Heat Dissipation 35 Energy Generation 10 Energy Capacity 250 Matter Stores 300 Matter Capacity 300 Sight Range 16 Terrain Scan Density 10 Armor Coverage 150 Evasion (%) 50 Recoil Reduction 2 Item Schematics ----------------- None Robot Schematics ------------------ None Fabricated ------------ Nothing Alien Tech Used ----------------- None Achievements -------------- None Challenges ------------ None Game ------ Seed BeamThunderMagmablaster Manual? 0 Play Time 00:05:55 Cumulative 88.1 hours Start 2019.11.01 @ 19:13:52 End 2019.11.01 @ 19:18:50 Sessions 1 Manual Loads 0 Difficulty Rogue Special Mode None Game No. 140 Rogue 140 Adventurer 0 Explorer 0 Win Type - Total 0 Types 0/0/0/0/0/0/0 Lore% 30 Gallery% 44 Achievement% 31 Wizard Run 0 Options --------- ASCII 0 Keyboard 0 Movement Mouse Keybinds 0 Fullscreen 1 Font 18/SmallcapsGlow Map View 76x50 Tactical HUD 1 Map Filters NONE Filters NONE Steam 1 RUN: f155c742-b347-4dec-a0b3-89467ae73cce